fUST/lending_fUST_20250503
["ID","MTS","AMOUNT","RATE_DAILY","PERIOD"]
[359652056,1746220243721,-502.98,0.00019178,2]
[359652059,1746220243732,-788.49,0.00019178,2]
[359652061,1746220243744,-400.0,0.00019178,2]
[359652063,1746220243754,-400.0,0.00019178,2]
[359652065,1746220243769,-400.0,0.00019178,2]
[359652067,1746220243778,-754.4,0.00019178,2]
[359652069,1746220243788,-400.0,0.00019178,2]
[359652071,1746220243798,-400.0,0.00019178,2]
[359652073,1746220243808,-400.0,0.00019178,2]
[359652075,1746220243818,-400.0,0.00019178,2]
[359652077,1746220243828,-400.0,0.00019178,2]
[359652079,1746220243838,-400.0,0.00019178,2]
[359652081,1746220243847,-542.67,0.00019178,2]
[359652083,1746220243856,-511.65,0.00019178,2]
[359652085,1746220243866,-400.0,0.00019178,2]
[359652087,1746220243875,-1699.02,0.00019178,2]
[359652089,1746220243885,-815.69,0.00019178,2]
[359652091,1746220243894,-3631.97,0.00019178,2]
[359652093,1746220243904,-942.38,0.00019178,2]
[359652095,1746220243914,-1231.94,0.00019178,2]
[359652097,1746220243923,-614.27,0.00019178,2]
[359652099,1746220243933,-1907.84,0.00019178,2]
[359652101,1746220243942,-537.97,0.00019178,2]
[359652103,1746220243952,-1307.58,0.00019178,2]
[359652105,1746220243962,-1514.86,0.00019178,2]
[359652107,1746220243972,-400.0,0.00019178,2]
[359652109,1746220243981,-3099.48,0.00019178,2]
[359652111,1746220243991,-705.95,0.00019178,2]
[359652113,1746220244001,-400.0,0.00019178,2]
[359652115,1746220244010,-400.0,0.00019178,2]
[359652116,1746220244019,-1272.05,0.00019178,2]
[359652117,1746220244028,-400.0,0.00019178,2]
[359652118,1746220244037,-400.0,0.00019178,2]
[359652119,1746220244046,-400.0,0.00019178,2]
[359652120,1746220244055,-400.0,0.00019178,2]
[359652121,1746220244065,-1139.81,0.00019178,2]
[359652123,1746220244074,-400.0,0.00019178,2]
[359652125,1746220244084,-474.92,0.00019178,2]
[359652127,1746220244093,-1355.53,0.00019178,2]
[359652129,1746220244102,-400.0,0.00019178,2]
[359652131,1746220244112,-291.821524,0.00019178,2]
[359652133,1746220244122,-545.0,0.00019229,2]
[359652135,1746220244131,-707.0,0.00019229,2]
[359652137,1746220244141,-177.07838718,0.00019229,2]
[359652338,1746220246064,-2066.92161282,0.00019229,2]
[359652340,1746220246075,-332.3858785,0.00019257,2]
[359652342,1746220246084,-160.0,0.00019262,2]
[359652344,1746220246094,-841.31989156,0.00019262,2]
[359652346,1746220246104,-500.0,0.00019315,2]
[359652348,1746220246113,-500.0,0.00019315,2]
[359652350,1746220246123,-500.0,0.00019315,2]
[359652352,1746220246133,-500.0,0.00019315,2]
[359652354,1746220246142,-500.0,0.00019315,2]
[359652356,1746220246152,-292.02991366,0.00019315,2]
[359652358,1746220246162,-1475.52,0.00019319,3]
[359652360,1746220246171,-737.76,0.00019319,3]
[359652362,1746220246180,-368.88,0.00019319,3]
[359652364,1746220246189,-184.44,0.00019319,3]
[359652366,1746220246198,-553.34,0.00019319,3]
[359652368,1746220246208,-151.0,0.00019329,2]
[359652370,1746220246217,-42350.21582964,0.00019329,2]
[359652672,1746221069043,188.21536903,0.000273,60]
[359652694,1746221230129,-300.0,0.00018213,2]
[359652695,1746221230158,-177.04625386,0.00018213,2]
[359652696,1746221230180,-1103.6767703,0.00018214,2]
[359652708,1746221393411,214.25463097,0.00027397,60]
[359652709,1746221393629,402.47,0.00027397,60]
[359652713,1746221432038,-300.0,0.00018213,2]
[359652714,1746221432049,-173.76474133,0.00018214,2]
[359652764,1746221438101,-11935.04820783,0.00018214,2]
[359652771,1746221438160,-11687.51028054,0.00018214,2]
[359652773,1746221438169,-1277.44151163,0.00018222,2]
[359653376,1746221446205,-175.63589157,0.00018222,2]
[359653379,1746221446224,-440.4108586,0.00018222,2]
[359653381,1746221446234,-194.4696666,0.00018233,2]
[359653383,1746221446244,-250.0,0.00018876,2]
[359653385,1746221446254,-171.52793011,0.00019078,2]
[359653387,1746221446264,-1002.78785087,0.00019078,2]
[359653389,1746221446275,-227.83893701,0.00019078,2]
[359653391,1746221446285,-227.83893701,0.00019153,2]
[359653393,1746221446295,-218.92412546,0.00019177,2]
[359653395,1746221446305,-467.85,0.00019178,2]
[359653397,1746221446315,-406.69,0.00019178,2]
[359653399,1746221446324,-400.0,0.00019178,2]
[359653401,1746221446334,-400.0,0.00019178,2]
[359653403,1746221446344,-400.0,0.00019178,2]
[359653405,1746221446354,-409.24,0.00019178,2]
[359653407,1746221446364,-400.0,0.00019178,2]
[359653409,1746221446374,-400.0,0.00019178,2]
[359653411,1746221446384,-400.0,0.00019178,2]
[359653413,1746221446394,-400.0,0.00019178,2]
[359653415,1746221446403,-400.0,0.00019178,2]
[359653417,1746221446413,-331.23613982,0.00019178,2]
[359653419,1746221446423,-400.0,0.00019178,2]
[359653421,1746221446434,-449.44,0.00019178,2]
[359653423,1746221446444,-400.0,0.00019178,2]
[359653425,1746221446454,-284.3107,0.00019178,2]
[359653427,1746221446464,-400.0,0.00019178,2]
[359653429,1746221446474,-400.0,0.00019178,2]
[359653431,1746221446484,-400.0,0.00019178,2]
[359653433,1746221446494,-400.0,0.00019178,2]
[359653435,1746221446504,-400.0,0.00019178,2]
[359653437,1746221446517,-400.0,0.00019178,2]
[359653439,1746221446527,-568.62,0.00019178,2]
[359653441,1746221446536,-400.0,0.00019178,2]
[359653443,1746221446546,-400.0,0.00019178,2]
[359653445,1746221446558,-400.0,0.00019178,2]
[359653447,1746221446568,-203.13320853,0.00019178,2]
[359653449,1746221446577,-400.0,0.00019178,2]
[359653451,1746221446588,-400.0,0.00019178,2]
[359653453,1746221446598,-400.0,0.00019178,2]
[359653455,1746221446608,-236.26658386,0.00019178,2]
[359653857,1746221530110,740.689,0.00021,10]
[359653911,1746222637253,-1355.81793497,0.000189,2]
[359655060,1746223832685,-390.1809319,0.00018082,2]
[359655061,1746223832696,-473.508854,0.00018092,2]
[359655062,1746223832706,-715.44573836,0.00018099,2]
[359655635,1746223845831,-93.83010284,0.00018099,2]
[359655637,1746223845841,-7026.8541424,0.00018149,2]
[359655639,1746223845851,-164.369302,0.00018174,2]
[359655641,1746223845861,-164.369302,0.00018265,2]
[359655643,1746223845870,-300.0,0.00018899,2]
[359655645,1746223845880,-1619.32792959,0.000189,2]
[359655647,1746223845889,-201.6877241,0.000189,2]
[359655649,1746223845899,-196.58461169,0.000189,2]
[359655651,1746223845908,-914.00130349,0.00019078,2]
[359655653,1746223845917,-452.19252937,0.00019078,2]
[359655655,1746223845927,-452.19252937,0.00019122,2]
[359655657,1746223845937,-452.19252937,0.00019165,2]
[359655659,1746223845946,-1343.69,0.00019168,3]
[359655661,1746223845956,-828.1,0.00019168,3]
[359655663,1746223845966,-414.05,0.00019168,3]
[359655665,1746223845976,-207.02,0.00019168,3]
[359655666,1746223845986,-621.1,0.00019168,3]
[359655667,1746223845996,-2481.13432582,0.00019171,2]
[359655669,1746223846006,-500.0,0.00019173,2]
[359655671,1746223846016,-44.12097558,0.00019178,2]
[359656136,1746223912817,938.5,0.00020673,15]
[359656141,1746224348366,498.60057,0.00027397,120]
[359656142,1746224348390,1.39943,0.00027397,120]
[359656143,1746224358114,297.20057,0.00027397,120]
[359656144,1746224358140,202.79943,0.00027397,120]
[359656146,1746224427418,95.80057,0.00027397,120]
[359656147,1746224427444,298.6,0.00027397,120]
[359656148,1746224427470,105.65643,0.00027397,120]
[359656153,1746224501085,17182.0039507,0.00017863,2]
[359656156,1746224505133,192.94357,0.00027397,120]
[359656157,1746224505155,298.6,0.00027397,120]
[359656158,1746224505176,298.6,0.00027397,120]
[359656159,1746224505199,298.6,0.00027397,120]
[359656160,1746224505221,298.6,0.00027397,120]
[359656161,1746224505242,298.6,0.00027397,120]
[359656162,1746224505263,298.6,0.00027397,120]
[359656163,1746224505284,298.6,0.00027397,120]
[359656164,1746224505305,298.6,0.00027397,120]
[359656177,1746224590859,18193.8717265,0.00022,30]
[359656222,1746224856223,250.0,0.00017739,2]
[359656247,1746225032704,-281.8257478,0.00018083,2]
[359656248,1746225032713,-355.93632656,0.00018092,2]
[359656249,1746225032723,-529.002145,0.00018105,2]
[359656250,1746225032733,-912.52463144,0.00018157,2]
[359656251,1746225032791,-2258.99737925,0.00018157,2]
[359656260,1746225038801,-609.67786841,0.00018157,2]
[359656261,1746225038811,-153.33469079,0.00018485,2]
[359656262,1746225038820,-151.0,0.00018585,2]
[359656263,1746225038830,-306.07151977,0.00018945,2]
[359656264,1746225038839,-1403.22855586,0.00019033,2]
[359656265,1746225038848,-300.0,0.00019096,2]
[359656266,1746225038858,-1403.22855582,0.00019098,2]
[359656267,1746225038867,-321.4116754,0.000191,2]
[359656268,1746225038877,-1158.5700397,0.000191,2]
[359656269,1746225038886,-176.2117744,0.00019133,2]
[359656270,1746225038897,-50000.0,0.00019162,2]
[359656271,1746225038907,-1403.22855582,0.00019163,2]
[359656272,1746225038917,-930.95,0.00019168,3]
[359656273,1746225038926,-465.47,0.00019168,3]
[359656274,1746225038935,-232.74,0.00019168,3]
[359656275,1746225038945,-698.24,0.00019168,3]
[359656276,1746225038954,-500.0,0.00019173,2]
[359656277,1746225038963,-500.0,0.00019173,2]
[359656278,1746225038972,-500.0,0.00019173,2]
[359656279,1746225038982,-500.0,0.00019173,2]
[359656280,1746225038991,-500.0,0.00019173,2]
[359656281,1746225039001,-860.204182,0.00019173,2]
[359656282,1746225039010,-860.204182,0.00019173,2]
[359656283,1746225039019,-153.24688783,0.00019177,2]
[359656284,1746225039029,-400.0,0.00019178,2]
[359656285,1746225039038,-361.09693406,0.00019178,2]
[359656286,1746225039048,-469.59,0.00019178,2]
[359656287,1746225039057,-430.07,0.00019178,2]
[359656288,1746225039067,-400.0,0.00019178,2]
[359656289,1746225039076,-400.0,0.00019178,2]
[359656290,1746225039086,-400.0,0.00019178,2]
[359656291,1746225039095,-400.0,0.00019178,2]
[359656292,1746225039105,-400.0,0.00019178,2]
[359656293,1746225039116,-400.0,0.00019178,2]
[359656294,1746225039125,-400.0,0.00019178,2]
[359656295,1746225039135,-400.0,0.00019178,2]
[359656296,1746225039145,-400.0,0.00019178,2]
[359656297,1746225039155,-400.0,0.00019178,2]
[359656298,1746225039166,-430.71,0.00019178,2]
[359656299,1746225039176,-151.0,0.00019178,2]
[359656300,1746225039187,-151.0,0.00019178,2]
[359656301,1746225039197,-285.241319,0.00019178,2]
[359656302,1746225039207,-400.0,0.00019178,2]
[359656303,1746225039217,-400.0,0.00019178,2]
[359656304,1746225039227,-400.0,0.00019178,2]
[359656305,1746225039237,-400.0,0.00019178,2]
[359656306,1746225039247,-400.0,0.00019178,2]
[359656307,1746225039258,-400.0,0.00019178,2]
[359656308,1746225039267,-400.0,0.00019178,2]
[359656309,1746225039277,-400.0,0.00019178,2]
[359656310,1746225039287,-544.93,0.00019178,2]
[359656311,1746225039296,-500.0,0.00019178,2]
[359656312,1746225039306,-500.0,0.00019178,2]
[359656313,1746225039315,-400.0,0.00019178,2]
[359656314,1746225039324,-198.0,0.00019178,2]
[359656315,1746225039335,-400.0,0.00019178,2]
[359656316,1746225039344,-400.0,0.00019178,2]
[359656317,1746225039354,-400.0,0.00019178,2]
[359656318,1746225039364,-400.0,0.00019178,2]
[359656319,1746225039373,-400.0,0.00019178,2]
[359656320,1746225039383,-400.0,0.00019178,2]
[359656321,1746225039392,-400.0,0.00019178,2]
[359656322,1746225039402,-647.58,0.00019178,2]
[359656323,1746225039411,-400.0,0.00019178,2]
[359656324,1746225039421,-400.0,0.00019178,2]
[359656325,1746225039430,-400.0,0.00019178,2]
[359656326,1746225039440,-400.0,0.00019178,2]
[359656327,1746225039451,-400.0,0.00019178,2]
[359656328,1746225039462,-527.86,0.00019178,2]
[359656329,1746225039472,-400.0,0.00019178,2]
[359656330,1746225039482,-400.0,0.00019178,2]
[359656331,1746225039494,-557.27,0.00019178,2]
[359656332,1746225039505,-400.0,0.00019178,2]
[359656333,1746225039517,-400.0,0.00019178,2]
[359656334,1746225039527,-336.37777588,0.00019178,2]
[359656335,1746225039538,-597.1,0.00019178,2]
[359656336,1746225039548,-400.0,0.00019178,2]
[359656337,1746225039557,-400.0,0.00019178,2]
[359656338,1746225039567,-400.0,0.00019178,2]
[359656339,1746225039576,-400.0,0.00019178,2]
[359656340,1746225039586,-400.0,0.00019178,2]
[359656341,1746225039596,-400.0,0.00019178,2]
[359656342,1746225039605,-860.204182,0.00019178,2]
[359656343,1746225039615,-860.204182,0.00019178,2]
[359656344,1746225039625,-860.204182,0.00019178,2]
[359656345,1746225039635,-860.204182,0.00019178,2]
[359656346,1746225039645,-860.204182,0.00019178,2]
[359656347,1746225039655,-860.204182,0.00019178,2]
[359656348,1746225039664,-860.204182,0.00019178,2]
[359656349,1746225039673,-400.0,0.00019178,2]
[359656350,1746225039683,-860.204182,0.00019178,2]
[359656351,1746225039693,-860.204182,0.00019178,2]
[359656352,1746225039703,-860.204182,0.00019178,2]
[359656353,1746225039714,-860.204182,0.00019178,2]
[359656354,1746225039725,-860.204182,0.00019178,2]
[359656355,1746225039735,-860.204182,0.00019178,2]
[359656356,1746225039745,-860.204182,0.00019178,2]
[359656357,1746225039755,-860.204182,0.00019178,2]
[359656358,1746225039766,-860.204182,0.00019178,2]
[359656359,1746225039775,-860.204182,0.00019178,2]
[359656360,1746225039785,-860.20418785,0.00019178,2]
[359656361,1746225039795,-400.0,0.00019178,2]
[359656362,1746225039805,-400.0,0.00019178,2]
[359656363,1746225039815,-890.21,0.00019178,2]
[359656364,1746225039825,-440.2,0.00019178,2]
[359656365,1746225039835,-400.0,0.00019178,2]
[359656366,1746225039845,-530.97,0.00019178,2]
[359656367,1746225039855,-871.8,0.00019178,2]
[359656368,1746225039865,-400.0,0.00019178,2]
[359656369,1746225039875,-400.0,0.00019178,2]
[359656370,1746225039885,-400.0,0.00019178,2]
[359656371,1746225039894,-670.9,0.00019178,2]
[359656372,1746225039905,-400.0,0.00019178,2]
[359656373,1746225039916,-616.15,0.00019178,2]
[359656374,1746225039925,-400.0,0.00019178,2]
[359656375,1746225039935,-481.64,0.00019178,2]
[359656376,1746225039945,-617.81,0.00019178,2]
[359656377,1746225039955,-400.0,0.00019178,2]
[359656378,1746225039964,-532.22,0.00019178,2]
[359656379,1746225039974,-400.0,0.00019178,2]
[359656380,1746225039984,-400.0,0.00019178,2]
[359656381,1746225039994,-400.0,0.00019178,2]
[359656382,1746225040003,-951.17,0.00019178,2]
[359656383,1746225040013,-400.0,0.00019178,2]
[359656384,1746225040023,-400.0,0.00019178,2]
[359656385,1746225040032,-400.0,0.00019178,2]
[359656386,1746225040042,-400.0,0.00019178,2]
[359656387,1746225040052,-665.93,0.00019178,2]
[359656388,1746225040062,-984.36,0.00019178,2]
[359656389,1746225040071,-400.0,0.00019178,2]
[359656390,1746225040081,-157.90107642,0.00019178,2]
[359656391,1746225040095,-246.32892358,0.00019178,2]
[359656392,1746225040104,-400.0,0.00019178,2]
[359656394,1746225040115,-400.0,0.00019178,2]
[359656396,1746225040126,-3147.47,0.00019178,2]
[359656397,1746225040135,-400.0,0.00019178,2]
[359656398,1746225040145,-400.0,0.00019178,2]
[359656399,1746225040155,-400.0,0.00019178,2]
[359656400,1746225040165,-539.69,0.00019178,2]
[359656401,1746225040175,-475.35,0.00019178,2]
[359656402,1746225040185,-400.0,0.00019178,2]
[359656403,1746225040194,-721.41,0.00019178,2]
[359656404,1746225040205,-1092.32,0.00019178,2]
[359656405,1746225040215,-400.0,0.00019178,2]
[359656406,1746225040225,-400.0,0.00019178,2]
[359656407,1746225040235,-548.85,0.00019178,2]
[359656408,1746225040245,-1286.87,0.00019178,2]
[359656409,1746225040255,-1299.05,0.00019178,2]
[359656410,1746225040265,-400.0,0.00019178,2]
[359656411,1746225040275,-4609.37,0.00019178,2]
[359656412,1746225040285,-475.78,0.00019178,2]
[359656414,1746225040295,-400.0,0.00019178,2]
[359656415,1746225040304,-2810.0,0.00019178,2]
[359656416,1746225040314,-517.43,0.00019178,2]
[359656417,1746225040324,-676.54,0.00019178,2]
[359656418,1746225040336,-493.45,0.00019178,2]
[359656419,1746225040345,-1507.44,0.00019178,2]
[359656420,1746225040355,-435.35,0.00019178,2]
[359656421,1746225040365,-798.38,0.00019178,2]
[359656422,1746225040375,-1017.61,0.00019178,2]
[359656423,1746225040385,-1159.56,0.00019178,2]
[359656424,1746225040395,-400.0,0.00019178,2]
[359656425,1746225040406,-400.0,0.00019178,2]
[359656426,1746225040415,-400.0,0.00019178,2]
[359656427,1746225040425,-452.59,0.00019178,2]
[359656428,1746225040435,-500.0,0.00019178,2]
[359656429,1746225040445,-517.48,0.00019178,2]
[359656430,1746225040455,-151.0,0.00019178,2]
[359656431,1746225040465,-151.0,0.00019178,2]
[359656432,1746225040475,-400.0,0.00019178,2]
[359656433,1746225040485,-151.0,0.00019178,2]
[359656434,1746225040494,-1225.35,0.00019178,2]
[359656435,1746225040504,-400.0,0.00019178,2]
[359656436,1746225040514,-1433.73,0.00019178,2]
[359656437,1746225040523,-400.0,0.00019178,2]
[359656438,1746225040533,-467.33,0.00019178,2]
[359656439,1746225040542,-400.0,0.00019178,2]
[359656440,1746225040551,-500.0,0.00019178,2]
[359656441,1746225040561,-500.0,0.00019178,2]
[359656442,1746225040571,-400.0,0.00019178,2]
[359656443,1746225040581,-400.0,0.00019178,2]
[359656444,1746225040591,-151.0,0.00019178,2]
[359656446,1746225040600,-3070.78,0.00019178,2]
[359656448,1746225040611,-1701.58,0.00019178,2]
[359656450,1746225040620,-400.0,0.00019178,2]
[359656453,1746225040630,-754.44,0.00019178,2]
[359656455,1746225040639,-635.78,0.00019178,2]
[359656457,1746225040649,-937.77,0.00019178,2]
[359656459,1746225040659,-400.0,0.00019178,2]
[359656461,1746225040669,-1473.01,0.00019178,2]
[359656463,1746225040678,-1050.74,0.00019178,2]
[359656465,1746225040688,-420.27,0.00019178,2]
[359656467,1746225040698,-1560.06,0.00019178,2]
[359656469,1746225040708,-539.88,0.00019178,2]
[359656471,1746225040717,-1351.79,0.00019178,2]
[359656473,1746225040728,-1449.53,0.00019178,2]
[359656475,1746225040737,-400.0,0.00019178,2]
[359656477,1746225040746,-440.04,0.00019178,2]
[359656479,1746225040756,-400.0,0.00019178,2]
[359656481,1746225040766,-400.0,0.00019178,2]
[359656483,1746225040775,-425.28380241,0.00019178,2]
[359656485,1746225040785,-702.28,0.00019178,2]
[359656487,1746225040794,-400.0,0.00019178,2]
[359656489,1746225040803,-1190.96,0.00019178,2]
[359656491,1746225040813,-1089.89,0.00019178,2]
[359656493,1746225040823,-530.47,0.00019178,2]
[359656495,1746225040832,-474.87320504,0.00019178,2]
[359656497,1746225040842,-1621.07,0.00019178,2]
[359656499,1746225040851,-1123.24,0.00019178,2]
[359656501,1746225040861,-755.64,0.00019178,2]
[359656503,1746225040871,-400.0,0.00019178,2]
[359656505,1746225040882,-400.0,0.00019178,2]
[359656507,1746225040891,-400.0,0.00019178,2]
[359656509,1746225040902,-490.33,0.00019178,2]
[359656511,1746225040912,-472.54,0.00019178,2]
[359656513,1746225040922,-400.0,0.00019178,2]
[359656515,1746225040932,-722.97,0.00019178,2]
[359656517,1746225040941,-400.0,0.00019178,2]
[359656519,1746225040951,-400.0,0.00019178,2]
[359656521,1746225040960,-400.0,0.00019178,2]
[359656523,1746225040970,-440.93,0.00019178,2]
[359656525,1746225040980,-482.03,0.00019178,2]
[359656527,1746225040989,-400.0,0.00019178,2]
[359656529,1746225040999,-400.0,0.00019178,2]
[359656532,1746225041009,-1075.08,0.00019178,2]
[359656534,1746225041018,-151.0,0.00019178,2]
[359656535,1746225041029,-400.0,0.00019178,2]
[359656538,1746225041038,-151.0,0.00019178,2]
[359656540,1746225041048,-400.0,0.00019178,2]
[359656542,1746225041058,-400.0,0.00019178,2]
[359656544,1746225041068,-569.4,0.00019178,2]
[359656546,1746225041077,-500.0,0.00019178,2]
[359656547,1746225041086,-945.95,0.00019178,2]
[359656550,1746225041095,-400.0,0.00019178,2]
[359656551,1746225041104,-400.0,0.00019178,2]
[359656554,1746225041114,-400.0,0.00019178,2]
[359656555,1746225041123,-3712.1,0.00019178,2]
[359656557,1746225041133,-400.0,0.00019178,2]
[359656559,1746225041143,-400.0,0.00019178,2]
[359656561,1746225041153,-3105.1,0.00019178,2]
[359656563,1746225041163,-1628.22,0.00019178,2]
[359656566,1746225041173,-1520.47,0.00019178,2]
[359656568,1746225041182,-393.18647551,0.00019178,2]
[359656570,1746225041192,-1369.27,0.00019178,2]
[359656572,1746225041202,-1234.17,0.00019178,2]
[359656574,1746225041212,-400.0,0.00019178,2]
[359656576,1746225041221,-1911.3,0.00019178,2]
[359656577,1746225041230,-400.0,0.00019178,2]
[359656579,1746225041240,-1219.05,0.00019178,2]
[359656581,1746225041249,-232.06048069,0.00019178,2]
[359656584,1746225041259,-781.7,0.00019178,2]
[359656586,1746225041269,-400.0,0.00019178,2]
[359656588,1746225041278,-400.0,0.00019178,2]
[359656590,1746225041288,-400.0,0.00019178,2]
[359656592,1746225041297,-379.108924,0.00019178,2]
[359656594,1746225041307,-1403.22855582,0.00019227,2]
[359656596,1746225041316,-251.367,0.0001923,2]
[359656598,1746225041326,-150.19,0.0001923,2]
[359656600,1746225041336,-250.0,0.0001923,2]
[359656602,1746225041346,-167.299,0.0001923,2]
[359656604,1746225041355,-151.471,0.0001923,2]
[359656606,1746225041365,-213.867,0.0001923,2]
[359656608,1746225041375,-403.0,0.0001923,2]
[359656610,1746225041384,-545.0,0.0001923,2]
[359656612,1746225041394,-265.9087028,0.00019257,2]
[359656614,1746225041403,-160.0,0.00019263,2]
[359656616,1746225041412,-160.0,0.00019263,2]
[359656618,1746225041422,-841.31989156,0.00019263,2]
[359656620,1746225041431,-160.0,0.00019263,2]
[359656622,1746225041441,-1403.22855582,0.00019292,2]
[359656624,1746225041451,-182.12647014,0.00019327,3]
[359656626,1746225041463,-841.31989156,0.00019327,3]
[359656628,1746225041472,-160.0,0.00019327,3]
[359656630,1746225041481,-12598.98820072,0.00019327,3]
[359656632,1746225041491,-65825.28020912,0.00019329,2]
[359656633,1746225041501,-323.5564405,0.00019392,2]
[359656635,1746225041511,-500.0,0.00019452,2]
[359656638,1746225041520,-500.0,0.00019452,2]
[359656639,1746225041529,-500.0,0.00019452,2]
[359656642,1746225041543,-165.60674842,0.00019452,2]
[359656643,1746225041553,-151.0,0.00019452,2]
[359656645,1746225041563,-162.8996145,0.00019452,2]
[359656648,1746225041572,-500.0,0.00019452,2]
[359656649,1746225041582,-500.0,0.00019452,2]
[359656651,1746225041591,-198.53236277,0.00019452,2]
[359656653,1746225041601,-500.0,0.00019452,2]
[359656656,1746225041611,-412.38780517,0.00019452,2]
[359656658,1746225041621,-430.07,0.00019452,2]
[359656660,1746225041632,-469.59,0.00019452,2]
[359656662,1746225041642,-400.0,0.00019452,2]
[359656664,1746225041651,-400.0,0.00019452,2]
[359656666,1746225041661,-400.0,0.00019452,2]
[359656668,1746225041670,-400.0,0.00019452,2]
[359656670,1746225041680,-400.0,0.00019452,2]
[359656672,1746225041689,-400.0,0.00019452,2]
[359656674,1746225041698,-400.0,0.00019452,2]
[359656676,1746225041708,-400.0,0.00019452,2]
[359656678,1746225041717,-400.0,0.00019452,2]
[359656680,1746225041726,-400.0,0.00019452,2]
[359656682,1746225041735,-430.71,0.00019452,2]
[359656684,1746225041746,-400.0,0.00019452,2]
[359656686,1746225041755,-400.0,0.00019452,2]
[359656688,1746225041765,-172.03400204,0.00019452,2]
[359656690,1746225041775,-400.0,0.00019452,2]
[359656692,1746225041784,-400.0,0.00019452,2]
[359656694,1746225041794,-400.0,0.00019452,2]
[359656696,1746225041804,-400.0,0.00019452,2]
[359656698,1746225041813,-400.0,0.00019452,2]
[359656700,1746225041823,-544.93,0.00019452,2]
[359656702,1746225041833,-400.0,0.00019452,2]
[359656704,1746225041842,-400.0,0.00019452,2]
[359656706,1746225041852,-400.0,0.00019452,2]
[359656708,1746225041863,-400.0,0.00019452,2]
[359656710,1746225041873,-400.0,0.00019452,2]
[359656712,1746225041882,-400.0,0.00019452,2]
[359656714,1746225041892,-400.0,0.00019452,2]
[359656716,1746225041901,-400.0,0.00019452,2]
[359656718,1746225041911,-24.49506509,0.00019452,2]
[359656721,1746225041924,-623.08493491,0.00019452,2]
[359656723,1746225041934,-400.0,0.00019452,2]
[359656725,1746225041944,-400.0,0.00019452,2]
[359656727,1746225041954,-400.0,0.00019452,2]
[359656729,1746225041963,-400.0,0.00019452,2]
[359656731,1746225041973,-400.0,0.00019452,2]
[359656733,1746225041983,-527.86,0.00019452,2]
[359656735,1746225041992,-400.0,0.00019452,2]
[359656737,1746225042001,-400.0,0.00019452,2]
[359656739,1746225042011,-557.27,0.00019452,2]
[359656741,1746225042020,-400.0,0.00019452,2]
[359656743,1746225042030,-400.0,0.00019452,2]
[359656744,1746225042039,-597.1,0.00019452,2]
[359656745,1746225042049,-400.0,0.00019452,2]
[359656746,1746225042058,-400.0,0.00019452,2]
[359656747,1746225042067,-400.0,0.00019452,2]
[359656748,1746225042077,-400.0,0.00019452,2]
[359656749,1746225042087,-400.0,0.00019452,2]
[359656750,1746225042096,-400.0,0.00019452,2]
[359656751,1746225042106,-400.0,0.00019452,2]